[Event "USA Championship Women 2022"]
[Site "Saint Louis"]
[Date "2022.10.07"]
[Round "3.6"]
[White "Abrahamyan, Tatev"]
[Black "Yu, Jennifer"]
[Result "1-0"]
[ECO "C54"]
[WhiteElo "2308"]
[BlackElo "2297"]
[Annotator "TA"]
[PlyCount "75"]
[EventDate "2022.09.05"]
[EventType "tourn"]
[EventCountry "USA"]
[SourceTitle "playchess.com"]
[Source "ChessBase"]
[SourceQuality "1"]
[TimeControl "40/5400+30:1800+30"]

{[%evp 21,75,15,15,15,15,23,20,14,16,8,12,0,22,13,20,27,8,0,12,0,0,0,35,36,203,210,219,214,203,210,196,212,801,798,797,797,762,782,777,772,760,742,706,371,351,50,47,40,5497,689,5465,5414,2466,2345,1513,1085]} 1. e4 {[%emt 0:00:03]} e5 {[%emt 0:03:23]} 2. Nf3 {[%emt 0:00:08]} Nc6 {[%emt 0:00:13]} 3. Bc4 {[%emt 0:00:18]} Bc5 {[%emt 0:00:34]} 4. c3 {[%emt 0:00:26]} Nf6 {[%emt 0:00:32]} 5. d3 {[%emt 0:00:14]} h6 {[%emt 0:02:13]} 6. O-O {[%emt 0:01:14]} d6 {[%emt 0:00:46]} 7. Re1 {[%emt 0:00:24]} O-O {[%emt 0:00:59]} 8. h3 {[%emt 0:01:46]} a6 {[%emt 0:07:25]} 9. Bb3 {[%emt 0:05:05]} Re8 {[%emt 0:00:29]} 10. Nbd2 {[%emt 0:02:06][%cal Bb1d2,Bd2f1,Bf1g3,Bg3e4,Be4c5][%mdl 32]} Be6 {[%emt 0:03:16]} 11. Bc2 {[%emt 0:02:14]} Ba7 {[%emt 0:01:45]} 12. Nf1 {[%emt 0:02:24] C54: Giuoco Piano: 4 c3 Nf6, main lines with 5 d4 and 5 d3.} d5 {[%emt 0:01:08]} 13. exd5 {[%emt 0:05:30]} Bxd5 {[%emt 0:09:32] 13...Bxd5 scores better than 13...Nxd5.} 14. Ng3 {[%emt 0:01:09] The position is equal.} Nh7 {[%emt 0:09:40]} 15. Qe2 {[%emt 0:24:23]} Qd7 {[%emt 0:08:28]} 16. Nh4 {[%emt 0:04:47]} Be6 {[%emt 0:13:10] Against Ngf5} 17. Qh5 {[%emt 0:20:41] Hoping for Ngf5.} Nf6 {[%emt 0:03:32]} 18. Qf3 {[%emt 0:02:01]} Bd5 {[%emt 0:10:48]} 19. Ne4 {[%emt 0:00:19] [#]} Nh7 $146 {[%emt 0:04:02]} ({Predecessor:} 19... Nxe4 20. dxe4 Be6 21. Nf5 Ne7 22. h4 Nxf5 23. exf5 Bd5 24. Qg3 Qc6 25. Be3 Bxe3 26. Rxe3 Qf6 27. Rae1 e4 {1-0 (44) Amin,B (2686)-Pantzar,M (2417) Chess.com INT 2020}) 20. Qh5 {[%emt 0:12:29]} Ne7 {[%emt 0:07:31] Against Nf5} 21. Be3 {[%emt 0:05:42]} f5 {[%emt 0:04:25]} 22. Bxa7 {[%emt 0:02:01] Nc5 is the strong threat.} Rxa7 $2 {[%emt 0:06:21]} (22... fxe4 $14 23. Be3 (23. dxe4 Bf7 $17) 23... Bf7 24. Qxe5 exd3) 23. Nc5 $18 {[%emt 0:00:32][%csl LRd7,LRe5]} Qc6 {[%emt 0:00:05] aiming for ...Nf6.} 24. Rxe5 {[%emt 0:01:32][%cal Oh5e2] Threatens to win with Qe2!} Nf6 {[%emt 0:00:03]} 25. Qe2 {[%emt 0:00:30]} Qxc5 {[%emt 0:00:51] [#]} 26. Re1 $1 {[%emt 0:01:40]} g5 $2 {[%emt 0:00:29]} (26... Raa8) 27. Nxf5 {[%emt 0:01:31]} ({Weaker is} 27. d4 Qb5 $16) 27... Nxf5 {[%emt 0:00:08]} 28. Rxe8+ {[%emt 0:00:03]} Nxe8 {[%emt 0:00:04]} 29. Qxe8+ {[%emt 0:00:03]} Qf8 {[%emt 0:01:06]} 30. Qg6+ {[%emt 0:02:02]} Ng7 {[%emt 0:00:07]} 31. d4 {[%emt 0:00:01] And now Qh7+ would win.} Ra8 {[%emt 0:01:47]} 32. Qxh6 {[%emt 0:00:55] White wants to mate with Bh7+.} Qf4 {[%emt 0:00:58] [#]} 33. Bh7+ $2 {[%emt 0:01:49]} (33. Qh7+ $1 $18 Kf8 34. Qh8+ Kf7 35. Qxa8) 33... Kf8 $14 {[%emt 0:00:15]} 34. Bd3 {[%emt 0:00:33] Really sharp!} Bf7 $2 {[%emt 0:00:50][%mdl 8192]} (34... Re8 $14 35. Rxe8+ Kxe8) 35. Qh8+ $18 {[%emt 0:00:25][%mdl 64] Skewer. White is clearly winning.} Bg8 {[%emt 0:00:04]} 36. Bc4 {[%emt 0:00:03][%csl Gc4][%cal Rh8g8]} Qf7 {[%emt 0:00:57]} 37. Bxf7 {[%emt 0:00:06]} Kxf7 {[%emt 0:00:02]} 38. Qh6 {[%emt 0:00:23] Weighted Error Value: White=0.37/Black=0.17 (very precise)} 1-0

[Event "USA Championship Women 2022"]
[Site "Saint Louis"]
[Date "2022.10.07"]
[Round "3.7"]
[White "Lee, Megan"]
[Black "Krush, Irina"]
[Result "1/2-1/2"]
[ECO "B62"]
[WhiteElo "2226"]
[BlackElo "2432"]
[Annotator "TA"]
[PlyCount "97"]
[EventDate "2022.09.05"]
[EventType "tourn"]
[EventCountry "USA"]
[SourceTitle "playchess.com"]
[Source "ChessBase"]
[SourceQuality "1"]
[TimeControl "40/5400+30:1800+30"]

{[%evp 13,97,28,26,19,18,16,44,0,0,-18,-13,-26,0,0,0,0,0,0,3,0,47,35,37,29,45,-11,0,-90,-95,-89,-83,-84,-101,-86,-56,-39,-14,-78,-72,-78,-14,-11,-21,-77,-31,-31,-31,-31,-32,-32,0,0,0,0,0,0,0,0,0,0,0,0,0,0,0,0,0,0,0,0,0,0,0,0,0,0,0,0,0,0,0,0,0,0,0,0]} 1. e4 {[%emt 0:00:02]} c5 {[%emt 0:04:58]} 2. Nf3 {[%emt 0:00:05]} Nc6 {[%emt 0:00:09]} 3. d4 {[%emt 0:00:15]} cxd4 {[%emt 0:00:10]} 4. Nxd4 {[%emt 0:00:05]} Nf6 {[%emt 0:00:10]} 5. Nc3 {[%emt 0:00:17]} d6 {[%emt 0:00:09]} 6. Bg5 {[%emt 0:00:22]} e6 {[%emt 0:00:12]} 7. Bb5 {[%emt 0:00:35]} Bd7 {[%emt 0:00:12]} 8. Qd3 {[%emt 0:00:38] B62: Sicilian: Richter-Rauzer: 6...e6: Unusual White 7th moves.} h6 $1 {[%emt 0:00:51][%mdl 4] is recently more successful than 8...Be7.} 9. Bh4 {[%emt 0:02:01]} g5 {[%emt 0:00:54]} 10. Bg3 {[%emt 0:00:46] White is slightly better.} (10. Bxc6 $5 bxc6 11. Bg3 $11) 10... Ne5 {[%emt 0:01:49] [#]} 11. Bxe5 $146 {[%emt 0:03:11]} ({Predecessor:} 11. Qe2 a6 12. Bxd7+ Nfxd7 13. h4 Rg8 14. hxg5 hxg5 15. O-O-O Rc8 16. Nb3 Qb6 17. f3 {1-0 (47) Deac,B (2679)-Mosadeghpour,M (2511) Chess.com INT 2022}) 11... dxe5 {[%emt 0:00:12]} 12. Bxd7+ {[%emt 0:20:06]} Nxd7 {[%emt 0:03:26]} 13. Ndb5 {[%emt 0:04:23]} a6 {[%emt 0:06:02]} 14. Nd6+ {[%emt 0:01:24]} Bxd6 {[%emt 0:00:09]} 15. Qxd6 {[%emt 0:00:02]} Rc8 {[%emt 0:13:01]} 16. O-O-O {[%emt 0:04:31]} Rc6 {[%emt 0:03:35]} (16... Qe7 $11 {is superior.}) 17. Qd2 {[%emt 0:02:26]} Qc7 {[%emt 0:01:59]} 18. h4 {[%emt 0:02:36]} g4 {[%emt 0:00:40]} 19. h5 {[%emt 0:09:26]} (19. Qe2 $14) 19... Nb6 {[%emt 0:01:50]} 20. Qe2 {[%emt 0:04:52]} (20. Nb1 $11) 20... Rxc3 $17 {[%emt 0:08:35]} 21. bxc3 {[%emt 0:02:31] [#]} Nc4 $1 {[%emt 0:00:08] aiming for ...Qc5.} 22. Rd3 {[%emt 0:15:45]} Qb6 {[%emt 0:12:17]} 23. Rd8+ {[%emt 0:01:18]} Qxd8 {[%emt 0:00:06]} 24. Qxc4 {[%emt 0:00:05][%mdl 4096] Endgame KQR-KQR} O-O {[%emt 0:03:41]} 25. Qe2 {[%emt 0:07:58]} (25. Rd1 $11 Qg5+ 26. Kb2) 25... Qg5+ {[%emt 0:00:16]} 26. Qd2 {[%emt 0:00:50]} Rd8 {[%emt 0:05:40]} ({Black should try} 26... Kh7 $17) 27. Qxg5+ $11 {[%emt 0:01:41]} hxg5 {[%emt 0:00:02]} 28. Rd1 {[%emt 0:04:19] [#]} (28. g3 $1 $11) 28... Rxd1+ {[%emt 0:03:12]} (28... Rc8 $1 $17) 29. Kxd1 $17 {[%emt 0:00:01] KP-KP} g3 {[%emt 0:00:14]} 30. Ke2 $1 {[%emt 0:09:11]} Kg7 {[%emt 0:11:26] ...Kh6 is the strong threat.} 31. Kf3 $1 {[%emt 0:00:56]} f5 {[%emt 0:02:14]} (31... Kh6 $5 {[%cal Rg3f2]} 32. Kxg3 Kxh5 $11) 32. Kxg3 {[%emt 0:01:13] Hoping for Kh3. The position is equal.} Kh6 {[%emt 0:00:09]} 33. Kh3 {[%emt 0:00:40]} Kxh5 {[%emt 0:00:13] And now ...g4+ would win.} 34. g4+ {[%emt 0:00:16]} Kg6 {[%emt 0:00:27] White must now prevent ...f4.} 35. Kg2 {[%emt 0:01:22]} Kf6 {[%emt 0:03:31] Strongly threatening ...f4.} 36. Kf3 {[%emt 0:00:29]} b6 {[%emt 0:08:06]} 37. c4 {[%emt 0:01:46]} Kg6 {[%emt 0:04:06]} 38. Kg2 {[%emt 0:00:16]} Kf7 {[%emt 0:03:16]} 39. Kf3 {[%emt 0:00:09]} Kf6 {[%emt 0:00:06]} 40. a3 {[%emt 0:01:02]} f4 {[%emt 0:01:36]} 41. Ke2 {[%emt 0:06:45]} Ke7 {[%emt 0:00:22]} 42. Kd3 {[%emt 0:00:52]} Kd6 {[%emt 0:00:20]} 43. f3 {[%emt 0:02:33]} a5 {[%emt 0:01:23]} 44. Kc3 {[%emt 0:00:51]} Kc5 {[%emt 0:00:28]} 45. a4 {[%emt 0:02:56]} Kc6 {[%emt 0:00:46]} 46. Kd2 {[%emt 0:00:10]} Kc5 {[%emt 0:00:11]} 47. Kc3 {[%emt 0:00:03]} Kc6 {[%emt 0:00:06] ( -> ...Kc5)} 48. Kd2 {[%emt 0:00:05]} Kc5 {[%emt 0:00:07]} 49. Kc3 {[%emt 0:00:15] Weighted Error Value: White=0.14 (very precise) /Black=0.10 (very precise)} 1/2-1/2

[Event "USA Championship Women 2022"]
[Site "Saint Louis"]
[Date "2022.10.08"]
[Round "4.1"]
[White "Krush, Irina"]
[Black "Eswaran, Ashritha"]
[Result "1-0"]
[ECO "E45"]
[WhiteElo "2432"]
[BlackElo "2365"]
[Annotator "TA"]
[PlyCount "99"]
[EventDate "2022.09.05"]
[EventType "tourn"]
[EventCountry "USA"]
[SourceTitle "playchess.com"]
[Source "ChessBase"]
[SourceQuality "1"]
[TimeControl "40/5400+30:1800+30"]

{[%evp 17,99,18,23,6,32,7,14,14,14,7,8,8,11,3,27,16,20,22,17,15,31,36,28,35,89,28,103,78,73,50,66,36,45,0,105,90,166,181,300,280,283,236,416,403,471,496,492,495,484,502,718,740,735,724,764,736,1117,837,938,632,603,598,802,789,1283,1224,1231,1100,2065,2234,2281,2223,2062,1897,29969,29968,29981,29982,29982,29983,29982,29983,29982,29974]} 1. d4 {[%emt 0:00:28]} Nf6 {[%emt 0:00:22]} 2. c4 {[%emt 0:00:10]} e6 {[%emt 0:00:19]} 3. Nc3 {[%emt 0:00:17]} Bb4 {[%emt 0:00:16]} 4. e3 {[%emt 0:00:13]} b6 {[%emt 0:00:25]} 5. Nge2 {[%emt 0:00:26]} Ba6 {[%emt 0:00:28]} 6. a3 {[%emt 0:00:17]} Be7 {[%emt 0:00:21]} 7. Nf4 {[%emt 0:00:19]} d5 {[%emt 0:00:52]} 8. cxd5 {[%emt 0:00:14]} Bxf1 {[%emt 0:00:10]} 9. Kxf1 {[%emt 0:00:08]} exd5 {[%emt 0:00:42]} 10. h4 {[%emt 0:00:22] E45: Nimzo-Indian: Rubinstein: 4...b6 5 Ne2 Ba6.} O-O {[%emt 0:02:15]} 11. g4 {[%emt 0:00:24]} c6 $1 {[%emt 0:02:39]} 12. g5 {[%emt 0:00:16] The position is equal.} Ne8 {[%emt 0:02:44] [#]} 13. Qg4 $146 {[%emt 0:00:25]} (13. Qd3 {looks sharper.} a5 14. f3 Nc7 15. Kg2) ({Predecessor:} 13. Qd3) 13... Qd7 {[%emt 0:06:44]} 14. Qxd7 {[%emt 0:00:48]} Nxd7 {[%emt 0:00:08]} 15. b3 {[%emt 0:03:39]} Nc7 {[%emt 0:06:27]} 16. a4 {[%emt 0:03:53]} Ne6 {[%emt 0:06:14]} 17. Nce2 {[%emt 0:03:03]} Nxf4 {[%emt 0:08:18]} 18. Nxf4 {[%emt 0:00:09]} Rac8 {[%emt 0:00:41]} 19. Ba3 {[%emt 0:03:42]} Bxa3 {[%emt 0:03:43]} 20. Rxa3 {[%emt 0:00:02]} Rfd8 {[%emt 0:00:11]} (20... a5 $14) 21. Ke2 {[%emt 0:19:19]} (21. a5 $16) 21... Nf8 {[%emt 0:05:15]} (21... a5 $1 $11 {remains equal.}) 22. b4 {[%emt 0:09:34] White is more active.} c5 {[%emt 0:06:09]} 23. dxc5 {[%emt 0:00:14]} bxc5 {[%emt 0:00:08]} 24. b5 {[%emt 0:00:50]} Ne6 {[%emt 0:00:58]} 25. Nd3 {[%emt 0:06:33]} d4 {[%emt 0:07:11]} (25... f6 $11 {keeps the balance.}) 26. Ne5 $16 {[%emt 0:01:19] White stays focused until the end.} c4 {[%emt 0:04:55]} (26... Rc7 $16 {was necessary.}) 27. Nc6 $18 {[%emt 0:00:20]} d3+ {[%emt 0:05:09]} (27... Rd7 $142 28. Rc1 c3) 28. Kd2 {[%emt 0:07:07]} Nc5 {[%emt 0:04:26]} 29. f3 {[%emt 0:00:23] Prevents Ne4+. aiming for Ne7+.} ({Weaker is} 29. Nxd8 Ne4+ 30. Kc1 Rxd8 $16) (29. Ne7+ Kf8 30. Nxc8 Ne4+ 31. Kc1 Rxc8 $16) 29... Rd7 {[%emt 0:15:38] Against Ne7+} (29... Nb3+ {was called for.} 30. Rxb3 Rxc6 31. bxc6 cxb3) 30. Rc1 $1 {[%emt 0:01:58]} ({Less strong is} 30. Ne5 Rdc7 $14) 30... Kf8 {[%emt 0:05:10]} (30... Nb3+ $2 {[#]} 31. Rxb3 $1 {[%mdl 512]} cxb3 32. Ne7+ $1 {[%mdl 512]} Kf8 33. Nxc8 $18) 31. Rxc4 {[%emt 0:00:26]} Ne6 {[%emt 0:00:49]} 32. Rxd3 {[%emt 0:01:05]} Rdc7 {[%emt 0:00:07]} 33. Rd6 {[%emt 0:03:28]} Nd8 {[%emt 0:01:27]} 34. Kc3 {[%emt 0:01:18]} Ne6 {[%emt 0:01:04]} 35. Kb4 {[%emt 0:00:57]} g6 {[%emt 0:00:53]} 36. a5 {[%emt 0:04:25]} Rb7 {[%emt 0:00:42]} 37. Nd4 {[%emt 0:09:51]} Rcb8 {[%emt 0:02:04]} 38. Nxe6+ {[%emt 0:01:06]} Ke7 {[%emt 0:00:23]} 39. Rd5 {[%emt 0:00:35]} Kxe6 {[%emt 0:00:27][%mdl 4096] Endgame KRR-KRR} 40. e4 {[%emt 0:00:44] Black must now prevent Rc6+.} Ke7 {[%emt 0:02:13]} 41. Rc6 {[%emt 0:31:41]} Kf8 {[%emt 0:01:54]} 42. Rdc5 {[%emt 0:00:00]} Kg7 {[%emt 0:02:42]} 43. Rc7 {[%emt 0:00:00]} h6 {[%emt 0:00:32]} 44. Rxb7 {[%emt 0:00:00]} Rxb7 {[%emt 0:00:05] KR-KR} 45. Rc6 {[%emt 0:00:00]} hxg5 {[%emt 0:00:40]} 46. hxg5 {[%emt 0:00:00] White mates.} Rd7 {[%emt 0:00:25]} 47. b6 {[%emt 0:00:00]} axb6 {[%emt 0:00:16]} 48. axb6 {[%emt 0:00:00]} Rd1 {[%emt 0:00:07]} 49. Kc5 {[%emt 0:00:00]} Rb1 {[%emt 0:00:39]} 50. Kd6 {[%emt 0:00:00] Weighted Error Value: White=0.21 (precise) /Black=0.37} 1-0

[Event "USA Championship Women 2022"]
[Site "Saint Louis"]
[Date "2022.10.08"]
[Round "4.2"]
[White "Lee, Alice"]
[Black "Yan, Ruiyang"]
[Result "1/2-1/2"]
[ECO "D37"]
[WhiteElo "2263"]
[BlackElo "2220"]
[Annotator "TA"]
[PlyCount "176"]
[EventDate "2022.09.05"]
[EventType "tourn"]
[EventCountry "USA"]
[SourceTitle "playchess.com"]
[Source "ChessBase"]
[SourceQuality "1"]
[TimeControl "40/5400+30:1800+30"]

{[%evp 9,176,25,29,23,31,10,3,13,25,18,23,0,4,0,4,2,0,-8,-8,-12,-13,-16,17,0,0,0,43,11,17,15,16,15,16,12,11,12,11,11,10,18,18,15,14,6,11,0,0,0,0,0,0,0,0,0,0,0,21,22,22,22,25,20,20,0,26,0,38,38,38,38,38,38,38,38,38,38,38,39,45,45,54,45,45,45,45,45,50,50,56,50,66,45,45,45,45,45,45,45,45,18,45,45,45,45,45,50,55,26,26,26,26,25,25,7,10,10,18,0,18,8,8,8,8,8,8,8,8,8,8,8,8,8,8,8,8,8,8,0,8,8,8,8,8,8,8,8,8,8,8,8,8,8,8,8,8,8,8,8,8,8,8,8,8,8,8,8,8,8,8]} 1. d4 {[%emt 0:00:01]} Nf6 {[%emt 0:00:11]} 2. c4 {[%emt 0:00:02]} e6 {[%emt 0:00:06]} 3. Nf3 {[%emt 0:00:10]} d5 {[%emt 0:00:06]} 4. Nc3 {[%emt 0:00:04]} a6 {[%emt 0:00:05]} 5. cxd5 {[%emt 0:00:04]} exd5 {[%emt 0:00:04]} 6. Bg5 {[%emt 0:00:04] D37: Queen's Gambit Declined: 5 Bf4.} Be6 {[%emt 0:00:14]} 7. Bxf6 {[%emt 0:00:04]} Qxf6 {[%emt 0:00:07]} 8. Qb3 {[%emt 0:00:04][%csl LRb7,LRd5]} Ra7 {[%emt 0:00:49]} 9. a3 {[%emt 0:00:06]} ({Resist} 9. Nxd5 Qd8 10. e4 c6 $14) 9... Qd8 {[%emt 0:00:41]} 10. h4 {[%emt 0:00:06]} h6 {[%emt 0:03:23] Against Ng5} 11. Qc2 {[%emt 0:00:06]} Nd7 {[%emt 0:07:52][%cal Bb8d7,Bd7f6,Bf6g4][%mdl 32]} 12. e4 {[%emt 0:00:17]} dxe4 {[%emt 0:15:08]} 13. Qxe4 {[%emt 0:01:00]} Nf6 {[%emt 0:02:48] Against d5} 14. Qe3 {[%emt 0:00:06][%cal Od4d5]} Ng4 $1 {[%emt 0:02:05] [#]} 15. Qe2 $146 {[%emt 0:00:07] [#] Hoping for d5.} ({Predecessor:} 15. Qd2 Bd6 16. d5 Bf5 17. Bd3 Qf6 18. Bxf5 Qxf5 19. Qd4 Ra8 20. Ne4 O-O {½-½ (20) Moiseenko,A (2620)-Vetoshko,V (2523) Lvov 2021}) 15... c6 {[%emt 0:04:29][%cal Bc7c6,Bc6d5][%mdl 32] Prevents d5.} 16. d5 {[%emt 0:11:15]} cxd5 {[%emt 0:03:40] aiming for ...Bc5.} 17. Nd4 {[%emt 0:02:29]} Nf6 {[%emt 0:06:07]} 18. O-O-O {[%emt 0:04:02]} Qc8 {[%emt 0:09:23][%cal Of8a3]} 19. Kb1 {[%emt 0:16:36][%cal Og2g4] With the idea g4!} Bc5 {[%emt 0:07:29]} 20. Nxe6 {[%emt 0:20:18]} Qxe6 {[%emt 0:00:10]} 21. Nxd5 {[%emt 0:00:20]} (21. Qc2 {is more complex.} O-O 22. Nxd5 b6 23. Bc4) 21... Nxd5 {[%emt 0:04:01]} 22. Rxd5 {[%emt 0:00:06] Threatens to win with Re5.} Qxe2 {[%emt 0:02:44]} 23. Bxe2 {[%emt 0:00:02]} b6 {[%emt 0:00:22]} 24. Rhd1 {[%emt 0:03:38]} O-O {[%emt 0:01:59]} 25. f3 {[%emt 0:00:18]} a5 {[%emt 0:04:21]} 26. Bc4 {[%emt 0:02:02]} g6 {[%emt 0:05:11]} 27. Rd7 {[%emt 0:05:54]} Rxd7 {[%emt 0:00:10]} 28. Rxd7 $11 {[%emt 0:00:05][%mdl 4096] Endgame KRB-KRB} h5 {[%emt 0:07:51]} 29. Rb7 {[%emt 0:01:07]} Kg7 {[%emt 0:02:49]} 30. Kc2 {[%emt 0:00:22]} Bd4 {[%emt 0:02:09]} 31. Kb3 {[%emt 0:01:07]} Bf2 {[%emt 0:05:01]} 32. Ka4 {[%emt 0:00:17]} Bd4 {[%emt 0:00:06]} 33. b3 {[%emt 0:00:08]} Bc5 {[%emt 0:00:07]} 34. Bd5 {[%emt 0:00:11]} Kf6 {[%emt 0:01:06]} 35. Rd7 {[%emt 0:08:37]} Be7 {[%emt 0:01:57]} 36. Rb7 {[%emt 0:01:07]} Bc5 {[%emt 0:00:03]} 37. Bc4 {[%emt 0:00:12]} g5 {[%emt 0:01:14]} 38. hxg5+ {[%emt 0:00:10]} Kxg5 {[%emt 0:00:04]} 39. Bxf7 {[%emt 0:03:35]} Kh4 {[%emt 0:00:06]} 40. b4 {[%emt 0:08:08]} axb4 {[%emt 0:00:07]} 41. axb4 {[%emt 0:30:04]} Be3 {[%emt 0:33:32]} 42. Re7 {[%emt 0:03:54]} Bf2 {[%emt 0:00:00]} 43. Bd5 {[%emt 0:00:00]} Rd8 {[%emt 0:00:00]} 44. Re5 {[%emt 0:00:00]} Kg3 {[%emt 0:00:00]} 45. Rxh5 {[%emt 0:00:00]} Kxg2 {[%emt 0:00:00]} 46. Rg5+ {[%emt 0:00:00]} Kh3 {[%emt 0:00:00]} 47. Be6+ {[%emt 0:00:00]} Kh4 {[%emt 0:00:00]} 48. Rg4+ {[%emt 0:00:00]} Kh5 {[%emt 0:00:00]} 49. Rg2 {[%emt 0:00:00]} Be3 {[%emt 0:00:00]} 50. Bf7+ {[%emt 0:00:00]} Kh6 {[%emt 0:00:00]} 51. Rg6+ {[%emt 0:00:00]} Kh7 {[%emt 0:00:00]} 52. Re6 {[%emt 0:00:00]} Bf2 {[%emt 0:00:00]} 53. Be8 {[%emt 0:01:53]} Kg7 {[%emt 0:00:00]} 54. Kb5 {[%emt 0:00:41]} Rd5+ {[%emt 0:00:00]} 55. Ka6 {[%emt 0:00:32]} Rf5 {[%emt 0:03:18]} 56. Bc6 {[%emt 0:00:16]} Rf6 {[%emt 0:00:30]} 57. Re2 {[%emt 0:00:17]} Bd4 {[%emt 0:00:42]} 58. b5 {[%emt 0:02:15]} Rf7 {[%emt 0:00:28]} 59. Re4 {[%emt 0:01:42]} Bc5 {[%emt 0:01:12]} 60. Rc4 {[%emt 0:01:07][%cal Oc4c5]} Kf6 {[%emt 0:01:01]} 61. f4 {[%emt 0:07:06]} Re7 {[%emt 0:01:10] The position is equal.} 62. Be4 {[%emt 0:00:34]} Rd7 {[%emt 0:01:13]} 63. Bc6 {[%emt 0:04:18] Rxc5 would kill now.} Rd4 {[%emt 0:01:13] [#]} 64. Rxc5 $1 {[%emt 0:00:04]} bxc5 {[%emt 0:00:03] KR-KB} 65. b6 {[%emt 0:00:02]} Rd8 {[%emt 0:00:15]} 66. b7 {[%emt 0:00:22]} Ke6 {[%emt 0:01:34]} 67. Kb6 {[%emt 0:00:50] Strongly threatening Kc7.} Kd6 {[%emt 0:00:07]} 68. Bb5 {[%emt 0:00:39]} Rb8 {[%emt 0:00:48]} 69. Bc4 {[%emt 0:00:27]} Rh8 {[%emt 0:00:43]} 70. Bd3 {[%emt 0:01:40]} Rb8 {[%emt 0:00:16]} 71. f5 {[%emt 0:00:58]} Rf8 {[%emt 0:00:43]} 72. Be2 {[%emt 0:00:36]} Ke5 {[%emt 0:00:43]} 73. Bd3 {[%emt 0:00:17]} (73. Bg4 $5 {[%cal Rf5f6]} Rb8 74. Be2 $11 (74. Kxc5 Rxb7 75. Bf3 Rf7 $11)) 73... c4 {[%emt 0:00:23]} 74. Bc2 {[%emt 0:00:16] White threatens Ka7 and mate.} Kd6 {[%emt 0:00:15]} 75. Bd1 {[%emt 0:01:49]} c3 {[%emt 0:00:20]} 76. Bc2 {[%emt 0:00:32]} Rb8 {[%emt 0:00:14]} 77. Bd3 $1 {[%emt 0:00:20]} Rf8 {[%emt 0:00:10]} 78. Be4 {[%emt 0:00:45]} Rb8 {[%emt 0:00:05]} 79. Bc2 {[%emt 0:00:26]} Rf8 {[%emt 0:00:08]} 80. Bb3 {[%emt 0:00:03]} (80. f6 $5) 80... Rb8 {[%emt 0:00:16]} 81. Ba4 {[%emt 0:01:00]} Rf8 {[%emt 0:00:24]} 82. Bd1 $1 {[%emt 0:00:09]} Rb8 {[%emt 0:00:09]} 83. Bb3 {[%emt 0:00:24]} Rf8 {[%emt 0:00:16]} 84. f6 {[%emt 0:00:00][%cal Bf5f6,Bf6f7][%mdl 32]} Rb8 {[%emt 0:00:33]} 85. f7 {[%emt 0:00:00]} Ke7 {[%emt 0:00:03]} 86. Kc7 {[%emt 0:00:00] Chess con chili.} Rxb7+ {[%emt 0:00:04]} 87. Kxb7 {[%emt 0:00:00]} c2 {[%emt 0:00:04]} 88. Bxc2 {[%emt 0:00:00] Intending Bb3 and mate.} Kxf7 {[%emt 0:00:03] Weighted Error Value: White=0.05 (flawless) /Black=0.05 (flawless)} 1/2-1/2